[Event "13th All African Rapid-ch Men 2024"]
[Site "Accra"]
[Date "2024.03.10"]
[Round "6.3"]
[White "Paiva, Donaldo"]
[Black "Mwali, Chitumbo"]
[Result "1-0"]
[ECO "A73"]
[WhiteElo "2172"]
[BlackElo "2340"]
[Annotator "TA"]
[PlyCount "91"]
[EventDate "2024.03.07"]
[EventType "rapid"]
[EventCountry "GHA"]
[SourceTitle "playchess.com"]
[Source "ChessBase"]
[SourceQuality "1"]
[TimeControl "900+10"]

{[%evp 21,91,45,73,26,60,60,64,21,25,21,43,22,31,0,0,0,0,3,10,0,0,0,0,0,20,21,19,15,13,14,16,0,27,40,33,38,43,45,55,47,54,0,0,0,0,0,0,0,9,27,8,8,8,8,8,14,18,13,73,53,197,197,195,188,212,186,272,267,412,408,400,245]} 1. d4 {[%emt 0:00:03]} Nf6 {[%emt 0:00:01]} 2. c4 {[%emt 0:00:01]} c5 {[%emt 0:00:01]} 3. d5 {[%emt 0:00:16]} e6 {[%emt 0:00:02]} 4. Nc3 {[%emt 0:00:01]} exd5 {[%emt 0:00:00]} 5. cxd5 {[%emt 0:00:01]} d6 {[%emt 0:00:01]} 6. Nf3 {[%emt 0:00:42]} g6 {[%emt 0:00:07]} 7. Nd2 {[%emt 0:00:19]} Bg7 {[%emt 0:00:14]} 8. e4 {[%emt 0:00:01]} O-O {[%emt 0:00:05]} 9. Be2 {[%emt 0:00:02]} Na6 {[%emt 0:00:25]} 10. O-O {[%emt 0:00:07]} Nc7 {[%emt 0:00:19]} 11. a4 {[%emt 0:00:02]} Rb8 {[%emt 0:00:28]} 12. Re1 {[%emt 0:00:40]} ({Better is} 12. Nc4 $16) 12... b6 {[%emt 0:00:41]} 13. Nc4 {[%emt 0:00:09]} Ba6 {[%emt 0:00:07]} 14. Bf4 {[%emt 0:00:21] White is more active. White is slightly better.} Bxc4 {[%emt 0:01:10]} 15. Bxc4 {[%emt 0:00:02]} a6 {[%emt 0:00:09]} 16. Qd3 {[%emt 0:00:15]} Nh5 {[%emt 0:00:22]} 17. Bd2 {[%emt 0:00:40]} b5 {[%emt 0:00:26]} 18. axb5 {[%emt 0:00:18]} axb5 {[%emt 0:00:02]} 19. Nxb5 {[%emt 0:00:16]} Nxb5 {[%emt 0:00:05]} 20. Bxb5 {[%emt 0:00:05]} Bxb2 {[%emt 0:00:55]} 21. Ra6 {[%emt 0:00:20]} Qf6 {[%emt 0:00:31]} 22. g3 {[%emt 0:00:43]} Ra8 {[%emt 0:00:33]} 23. Be3 {[%emt 0:01:54]} Rxa6 {[%emt 0:00:39]} 24. Bxa6 {[%emt 0:00:02]} Ra8 {[%emt 0:00:21]} 25. Rb1 {[%emt 0:00:21][%cal Be1b1,Bb1b6,Bb6c6][%mdl 32]} (25. Re2 {simplifies} Bd4 26. Bxd4 Qxd4 27. Qxd4 cxd4 28. Bb5) 25... Be5 {[%emt 0:02:33]} 26. Rb6 {[%emt 0:00:34]} Qf3 {[%emt 0:00:23]} 27. Bh6 {[%emt 0:00:42]} Qxd3 {[%emt 0:00:49]} 28. Bxd3 {[%emt 0:00:02]} Nf6 {[%emt 0:00:03]} 29. h3 {[%emt 0:00:32] Repels Ng4} c4 {[%emt 0:00:39]} 30. Bc2 {[%emt 0:01:07]} Nd7 {[%emt 0:00:17]} 31. Rc6 {[%emt 0:00:07]} (31. Rb7 $14 Nc5 32. Rb4) 31... Nc5 $11 {[%emt 0:00:09]} 32. f4 {[%emt 0:02:50]} Bd4+ {[%emt 0:00:11]} 33. Kf1 {[%emt 0:00:03][%cal Oe4e5]} f5 {[%emt 0:00:47]} 34. exf5 {[%emt 0:00:17]} (34. e5 $5 Ra1+ $8 35. Ke2 $16) 34... Ra2 {[%emt 0:00:41]} 35. fxg6 {[%emt 0:00:08]} hxg6 {[%emt 0:00:14]} 36. Bxg6 {[%emt 0:00:35][%cal Rc6c8] [#]} Rf2+ {[%emt 0:00:11]} 37. Ke1 {[%emt 0:00:56][%cal Rc6c8]} Nd3+ {[%emt 0:00:20]} 38. Bxd3 {[%emt 0:01:10]} cxd3 {[%emt 0:00:02][%mdl 4096] Endgame. KRB-KRB} 39. f5 $1 {[%emt 0:00:06] Black must now prevent g4.} (39. Rxd6 {gets mated.} Be3 40. Rd8+ Kh7 41. Rd7+ Kxh6 42. Rd6+ Kg7 43. Re6 d2+ 44. Kd1 Rf1+ 45. Ke2 Re1+ (45... d1=B+ $2 {perishes.} 46. Kxf1 Bc5 47. d6 $18) 46. Kd3 d1=Q+ (46... d1=B 47. Rxe3 Rf1 48. Ke4 $16) 47. Kc3 Qd4+ (47... Qxd5 48. Rg6+ Kxg6 49. f5+ Kf7 50. Kb2 Qb5+ 51. Ka2 Re2+ 52. Ka3 Bc5#) 48. Kc2 Rc1+ (48... Qxd5 49. Re7+ Kf8 50. Rxe3 Rxe3 51. g4 Qg2+ 52. Kd1 Ra3 53. h4 Ra1#) 49. Kb3 Rb1+ 50. Kc2 Rb2#) 39... Rxf5 {[%emt 0:00:35]} (39... Bc5 $11 {remains equal.}) 40. Bf4 {[%emt 0:01:03] Kd2 is the strong threat.} Be5 {[%emt 0:00:30] [#] This move loses the game for Black.} ({Black should play} 40... Bc5 $1 $14) 41. Bxe5 $1 $18 {[%emt 0:00:07]} Rxe5+ {[%emt 0:00:00]} 42. Kd2 {[%emt 0:00:01]} Rxd5 {[%emt 0:00:03]} 43. Rc3 {[%emt 0:00:02]} Re5 {[%emt 0:00:51]} (43... Kf7 {was worth a try.} 44. Rxd3 Rh5) 44. Rxd3 {[%emt 0:00:03]} (44. Kxd3 Kh7 45. h4 Kg8 $11) 44... d5 {[%emt 0:00:01]} (44... Re6 {keeps fighting.} 45. h4 Kh7) 45. Re3 {[%emt 0:00:07]} Rf5 {[%emt 0:00:06]} 46. Ke2 {[%emt 0:00:02] Weighted Error Value: White=0.08 (flawless) /Black=0.23 (precise) .  Mistake:       	White=1     	Black=4      Inaccurate:     	White=3     	Black=2      OK:         	White=13    	Black=10     Best:        	White=1     	Black=4      Strong:       	White=2     	---} 1-0

[Event "13th All African Rapid-ch Men 2024"]
[Site "Accra"]
[Date "2024.03.10"]
[Round "6.4"]
[White "Rakotomaharo, Fy Antenaina"]
[Black "Zhemba, Jemusse"]
[Result "1-0"]
[ECO "A06"]
[WhiteElo "2454"]
[BlackElo "2226"]
[Annotator "TA"]
[PlyCount "105"]
[EventDate "2024.03.07"]
[EventType "rapid"]
[EventCountry "GHA"]
[SourceTitle "playchess.com"]
[Source "ChessBase"]
[SourceQuality "1"]
[TimeControl "900+10"]

{[%evp 9,105,25,35,38,25,34,55,18,28,1,2,0,0,11,0,14,25,6,48,52,50,37,29,27,36,36,44,55,63,60,57,40,37,43,48,22,51,46,35,19,90,80,145,77,106,95,117,115,107,114,104,102,137,135,182,169,630,347,357,262,286,246,241,178,163,176,273,279,491,457,630,228,590,606,604,618,520,515,1077,983,909,202,272,241,229,183,456,306,379,463,531,523,5575,5057,4810,4718,4627,4622]} 1. Nf3 {[%emt 0:00:03]} d5 {[%emt 0:00:01]} 2. e3 {[%emt 0:00:02]} c5 {[%emt 0:00:09]} 3. b3 {[%emt 0:00:07]} Nf6 {[%emt 0:00:09]} 4. Bb2 {[%emt 0:00:02]} g6 {[%emt 0:00:08]} 5. c4 {[%emt 0:00:15]} Bg7 {[%emt 0:00:05][%cal Od5d4]} 6. cxd5 {[%emt 0:00:04]} Qxd5 {[%emt 0:00:24]} 7. Nc3 {[%emt 0:00:11]} Qf5 {[%emt 0:01:09]} 8. d4 {[%emt 0:00:07] White is slightly better.} O-O {[%emt 0:00:24]} 9. Bd3 {[%emt 0:00:03]} Qh5 {[%emt 0:00:25]} 10. Be2 {[%emt 0:00:44]} cxd4 {[%emt 0:00:14]} 11. Nxd4 {[%emt 0:00:07]} Qa5 {[%emt 0:00:06]} 12. O-O {[%emt 0:00:06]} Bd7 {[%emt 0:00:02]} 13. Bf3 {[%emt 0:00:10]} Nc6 {[%emt 0:00:50]} 14. Nxc6 {[%emt 0:00:04]} Bxc6 {[%emt 0:00:04]} 15. Bxc6 {[%emt 0:00:02]} bxc6 {[%emt 0:00:02]} 16. Qc2 {[%emt 0:00:14]} Rfd8 {[%emt 0:01:01]} 17. Na4 {[%emt 0:00:25]} Qb5 {[%emt 0:01:12]} 18. Rac1 {[%emt 0:00:35]} Nd5 {[%emt 0:01:29]} 19. Bxg7 {[%emt 0:00:22]} Kxg7 {[%emt 0:00:01]} 20. Qb2+ {[%emt 0:00:04]} Kg8 {[%emt 0:00:11]} 21. Rc5 {[%emt 0:00:10]} Qb7 {[%emt 0:00:11]} 22. h4 {[%emt 0:01:45][%cal Bh2h4,Bh4h5,Bh5h6][%mdl 32]} Nb4 {[%emt 0:00:24]} 23. Rc4 {[%emt 0:00:13]} Rd5 {[%emt 0:00:30]} 24. e4 {[%emt 0:01:00]} Rd6 {[%emt 0:00:02]} (24... Nd3 $11 25. Qc3 Rd6) 25. Nc5 $16 {[%emt 0:01:19]} Qb6 {[%emt 0:00:37]} (25... Qb5 $142) 26. Qe5 {[%emt 0:00:49]} ({Better is} 26. h5 {Strongly threatening Qe5.} Re8 27. h6) 26... Re8 {[%emt 0:01:07][%cal Ob4a6]} 27. h5 {[%emt 0:00:20] And now hxg6 would win.} Na6 {[%emt 0:02:06]} 28. h6 {[%emt 0:01:36] White is more active.} f6 {[%emt 0:00:18]} 29. Qc3 {[%emt 0:00:01]} Nxc5 {[%emt 0:00:23]} 30. Rxc5 $40 {[%emt 0:00:02][%mdl 128] White attacks with force.} Qa6 {[%emt 0:00:01][%cal Oe8d8]} 31. e5 {[%emt 0:00:55]} Rd3 {[%emt 0:00:45]} (31... Re6 $16) 32. Qc1 {[%emt 0:02:23]} f5 $2 {[%emt 0:02:00]} (32... fxe5 33. Qa1 (33. Rxe5 e6 $18) (33. Rxc6 Qa5 $18) 33... Rd4) 33. Rxc6 {[%emt 0:00:10]} Qb5 {[%emt 0:00:03]} 34. Rc8 {[%emt 0:01:18] [#] Intending e6 and mate.} Rdd8 {[%emt 0:00:12]} 35. Rxd8 {[%emt 0:00:48]} Rxd8 $18 {[%emt 0:00:01][%mdl 4096] Endgame. KQR-KQR} 36. Qc7 {[%emt 0:00:03]} Qd7 {[%emt 0:00:22]} 37. Qc4+ {[%emt 0:00:31]} Kf8 {[%emt 0:00:01] [#]} (37... e6 $142 38. Rc1 Kf7) 38. e6 $1 {[%emt 0:00:36]} Qd2 {[%emt 0:00:01]} (38... Qc8 39. Rc1 Qxc4 40. Rxc4 (40. bxc4 Rd6 $16) 40... Ke8) 39. Qc7 {[%emt 0:00:27]} Rd6 {[%emt 0:01:00]} 40. Qb8+ {[%emt 0:00:13]} (40. Qxa7 Qxh6 41. Qa8+ Kg7 $16) 40... Rd8 {[%emt 0:00:01]} 41. Qe5 {[%emt 0:00:03][%cal Re5h8]} (41. Qxa7 Qxh6 42. Qc7 Qd2 $16) 41... Qd4 {[%emt 0:00:09]} 42. Qxd4 {[%emt 0:00:03]} Rxd4 {[%emt 0:00:01] KR-KR} 43. Rc1 {[%emt 0:00:01] Rc8+ would kill now.} Ke8 {[%emt 0:00:31]} (43... Rd8 $142 44. Rc7 Ra8) 44. Rc8+ {[%emt 0:00:34]} Rd8 {[%emt 0:00:00]} 45. Rc7 $2 {[%emt 0:00:02]} (45. Rxd8+ Kxd8 46. f4) 45... Rd6 {[%emt 0:00:05]} 46. Rxa7 {[%emt 0:00:03]} Rxe6 {[%emt 0:00:01]} 47. b4 {[%emt 0:00:36][%cal Bb3b4,Bb4b5,Bb5b6,Bb6b7][%mdl 32] Hoping for b5.} g5 $2 {[%emt 0:00:07]} (47... Re1+ 48. Kh2 Rb1) 48. b5 {[%emt 0:00:08]} Kd8 {[%emt 0:00:19]} 49. a4 {[%emt 0:00:07][%cal Ba2a4,Ba4a5][%mdl 32]} Rxh6 {[%emt 0:02:36] White is clearly winning.} 50. a5 {[%emt 0:00:02]} Rh4 {[%emt 0:00:12]} 51. b6 {[%emt 0:00:25]} Rb4 {[%emt 0:00:10]} 52. b7 {[%emt 0:00:15]} Rb1+ {[%emt 0:01:14]} 53. Kh2 {[%emt 0:00:03] Weighted Error Value: White=0.36/Black=0.57.  Mistake:       	White=1     	Black=7      Inaccurate:     	White=5     	Black=6      OK:         	White=14    	Black=10     Best:        	White=7     	Black=4      Strong:       	White=1     	---} 1-0

[Event "13th All African Rapid-ch Men 2024"]
[Site "Accra"]
[Date "2024.03.10"]
[Round "6.5"]
[White "Cogan, Nicolas"]
[Black "Silva, David"]
[Result "0-1"]
[ECO "A69"]
[WhiteElo "2070"]
[BlackElo "2358"]
[Annotator "TA"]
[PlyCount "92"]
[EventDate "2024.03.07"]
[EventType "rapid"]
[EventCountry "GHA"]
[SourceTitle "playchess.com"]
[Source "ChessBase"]
[SourceQuality "1"]
[TimeControl "900+10"]

{[%evp 43,92,-46,66,77,129,147,137,0,-8,-12,0,-121,-106,-158,-143,-224,-119,-125,-67,-77,-64,-64,-67,-53,-65,-39,-29,-63,0,0,0,-64,0,0,0,0,0,0,0,-29959,-29959,-29962,-29955,-29955,-29953,-29989,-29976,-29992,-29983,-29997,-29998]} 1. d4 {[%emt 0:02:37]} Nf6 {[%emt 0:00:12]} 2. c4 {[%emt 0:00:02]} g6 {[%emt 0:00:01]} 3. Nc3 {[%emt 0:00:03]} Bg7 {[%emt 0:00:02]} 4. e4 {[%emt 0:00:02]} d6 {[%emt 0:00:02]} 5. f4 {[%emt 0:00:02]} O-O {[%emt 0:00:04]} 6. Nf3 {[%emt 0:00:02]} c5 {[%emt 0:00:04]} 7. d5 {[%emt 0:00:02]} e6 {[%emt 0:00:02]} 8. Be2 {[%emt 0:00:01]} exd5 {[%emt 0:00:01]} 9. cxd5 {[%emt 0:00:02]} Re8 {[%emt 0:00:06]} 10. e5 {[%emt 0:00:03]} Ng4 {[%emt 0:00:13]} 11. h3 {[%emt 0:01:48]} Nh6 {[%emt 0:00:08]} 12. O-O {[%emt 0:04:30]} Nf5 {[%emt 0:00:25]} 13. Kh2 {[%emt 0:01:25]} Nd4 {[%emt 0:01:22]} 14. Nxd4 {[%emt 0:00:24]} cxd4 {[%emt 0:00:01]} 15. Qxd4 {[%emt 0:00:02]} dxe5 {[%emt 0:00:03]} 16. Qf2 {[%emt 0:00:29]} Nd7 {[%emt 0:01:24]} 17. f5 {[%emt 0:01:24]} Rf8 {[%emt 0:02:27]} 18. Be3 {[%emt 0:01:42]} Nf6 {[%emt 0:00:52]} 19. Kh1 {[%emt 0:01:42]} gxf5 {[%emt 0:01:33]} 20. Bg5 {[%emt 0:00:12]} a6 {[%emt 0:01:06]} 21. g4 {[%emt 0:00:47]} f4 {[%emt 0:00:28]} 22. Qh4 {[%emt 0:00:21]} Qd6 {[%emt 0:00:22]} (22... h6 $1 $15 23. Bxh6 Ne4 (23... Nxd5 $2 24. g5 $18) 24. Qxd8 Ng3+ (24... Rxd8 25. Nxe4 Bxh6 26. Rfe1 $11) 25. Kg2 Rxd8 26. Bxg7 Kxg7) 23. Bd3 $1 $14 {[%emt 0:00:50]} h6 {[%emt 0:01:52]} (23... Re8 $142) 24. Bxh6 $16 {[%emt 0:00:23]} Bxh6 {[%emt 0:00:03]} 25. Qxh6 {[%emt 0:00:02]} (25. g5 $1 $16 {[%cal Rg5f6]} Nxd5 26. Rg1 (26. gxh6 Kh8 $11)) 25... Ne4 $1 $11 {[%emt 0:00:05]} 26. Qh4 {[%emt 0:00:19]} Qd8 {[%emt 0:00:18]} 27. g5 {[%emt 0:00:12] [#]} (27. Qxd8 $11 {keeps the balance.} Ng3+ 28. Kg1 Rxd8 29. Rfe1) 27... Ng3+ $1 $17 {[%emt 0:00:05]} (27... Nxg5 $2 28. Rg1 f5 29. Rxg5+ $18) 28. Kg2 {[%emt 0:00:06]} (28. Kh2 $142 Bf5 (28... Nxf1+ $2 29. Rxf1 f5 30. gxf6 $18) 29. Bxf5 Nxf5 30. Qf2) 28... Bf5 $1 $17 {[%emt 0:00:03]} 29. Rad1 {[%emt 0:00:14] [#]} (29. Rf3 $17 Qb6 30. Bxf5 Nxf5 31. Qf2) 29... Qd6 {[%emt 0:00:12]} (29... Nxf1 30. Kxf1 Bxd3+ 31. Rxd3 $11) (29... Qb6 $1 $19 {[%cal Rb6b2]} 30. Rd2 Nxf1 31. Kxf1 Bxd3+ 32. Rxd3 Qg6 (32... Qxb2 33. Ne4 $17)) 30. Rfe1 $17 {[%emt 0:00:09]} Qg6 {[%emt 0:00:07]} (30... Bg6 $17 31. Bxg6 fxg6) 31. Bxf5 $15 {[%emt 0:00:11]} Nxf5 {[%emt 0:00:02]} 32. Qg4 {[%emt 0:00:05]} Ne3+ {[%emt 0:00:08]} 33. Rxe3 $1 {[%emt 0:00:01]} fxe3 {[%emt 0:00:02]} 34. Ne4 {[%emt 0:00:14]} Rac8 {[%emt 0:00:15]} 35. Kf3 {[%emt 0:00:20]} Kg7 {[%emt 0:00:24]} ({Black should try} 35... Rfd8 $15 36. h4 Kf8) 36. d6 $11 {[%emt 0:00:06]} Rc4 {[%emt 0:00:16]} 37. d7 {[%emt 0:00:12]} (37. Kxe3 $11 Rb4 38. b3) 37... Rd4 {[%emt 0:00:02]} (37... e2 $15 38. Re1 Rd4 39. Rxe2 f5 40. gxf6+ Rxf6+ 41. Nxf6 Rxg4 42. Nxg4 (42. Ne8+ $2 Kf7 $19) 42... Qd3+ 43. Re3 Qxd7 44. Rxe5 Qf7+ 45. Kg3 Qxa2 46. Re7+ Kf8 47. Rxb7 Qe6 48. Rb8+ Ke7) 38. Rxd4 $1 $11 {[%emt 0:00:12]} (38. Kxe3 $2 Rxd1 39. Qxd1 Rd8 $19) 38... exd4 {[%emt 0:00:03]} 39. Qf4 {[%emt 0:00:09]} Qe6 {[%emt 0:00:07]} 40. Nf6 {[%emt 0:00:12]} e2 {[%emt 0:03:23]} (40... Qxa2 41. Ne8+ (41. Qxd4 Kg6 42. Qe4+ Kxg5 43. Ne8 Qe6 44. d8=Q+ f6 45. Qxe6 Kh6) 41... Kg8 42. Qf6 (42. d8=R Qc4 $18) 42... Qd5+ 43. Kf4) 41. Qxd4 $2 {[%emt 0:00:06][%mdl 8192]} (41. Ne8+ $2 Rxe8 42. Qf6+ Kh7 (42... Qxf6+ 43. gxf6+ Kf8 44. dxe8=Q+ Kxe8 45. Kxe2 $16) 43. Qh6+ Qxh6 44. dxe8=Q Qh5+ (44... Qxg5 45. Qxf7+ Kh6 46. Qf8+ Kh7 47. Qf7+ Kh8 48. Qf8+ Kh7 49. Qf7+ $11) (44... Qxh3+ $2 45. Kxe2 Qe6+ 46. Qxe6 $19) 45. Kf2 d3 (45... Qxh3 46. Qxf7+ Kh8 47. Qe8+ Kg7 48. Qe7+ Kg8 49. Qe8+ Kg7 50. Qe7+ Kg8 51. Kxe2 $11) 46. Qe4+ Qg6 47. Qh4+ Kg8 $19) (41. Qh4 $11 e1=N+ (41... e1=R 42. Qh7#) (41... Qe3+ 42. Kg4 $11) 42. Kf2 Qf5+ (42... Nd3+ 43. Kf1 $11) 43. Kxe1 Qb1+ 44. Kf2 Qc2+ (44... Qxb2+ 45. Kg3) 45. Kf1 Qd3+ 46. Ke1 Qb1+ 47. Kd2 Qxb2+ 48. Kd3 Qb1+ (48... Qxa2 49. Qh7#) 49. Ke2 d3+ (49... Qxa2+ 50. Kf3 $11) 50. Ke3 Qc1+ 51. Kd4 Qb2+ 52. Ke3 Qe2+ (52... Qxa2 53. Qh7#) 53. Kd4 Qb2+ 54. Ke3 Qe2+ (54... Qxa2 55. Qh7#) 55. Kd4 Qb2+) 41... e1=Q {[%emt 0:03:35]} (41... e1=R $2 {is the wrong capture.} 42. Nh5+ (42. d8=R Qxh3+ 43. Kf2 Rf1+ 44. Ke2 Qf3+ 45. Kd2 Rd1+ 46. Kc2 Qe2+ 47. Kb3 Rxd4 48. Rxd4 Qe3+) 42... Kg6 43. Nf4+ (43. d8=B {is a self mate.} Qxh3+ 44. Ng3 Rf1+ 45. Ke2 Qg2+ 46. Kd3 Rd1+ 47. Ke3 Qxg3+ 48. Ke4 Qg4+ 49. Ke3 Re8+) 43... Kxg5 44. Qg7+ (44. Nxe6+ fxe6+ 45. Kg2 Kg6 $18) (44. d8=Q+ Rxd8 45. Nxe6+ Rxe6 $18) (44. d8=B+ Kh6 $18) 44... Kf5 45. Nxe6 Kxe6 46. Qxf8 $18) (41... e1=N+ 42. Kf2 Rd8 43. Nh5+ Kf8 44. Qh8+ Ke7 45. Qe8+ Kd6 (45... Rxe8 46. dxe8=Q+ Kxe8 47. Ng7+ Kd7 48. Nxe6 $11) 46. Qxd8 Nd3+ 47. Kf3 Qxh3+ 48. Ke2 Qxh5+ 49. Kxd3 $15) 42. Nh5+ {[%emt 0:00:11]} Kg6 {[%emt 0:00:06]} 43. Nf4+ {[%emt 0:00:11]} Kh7 $1 {[%emt 0:01:39]} 44. d8=Q {[%emt 0:00:10]} Qf1+ {[%emt 0:00:15]} 45. Kg3 {[%emt 0:00:09]} Rxd8 {[%emt 0:00:04]} 46. Qxd8 {[%emt 0:00:13]} Qe3+ {[%emt 0:00:02]} 0-1

[Event "13th All African Rapid-ch Men 2024"]
[Site "Accra"]
[Date "2024.03.10"]
[Round "6.6"]
[White "Oluka Robert Mcligeyo"]
[Black "Asabri, Hussien"]
[Result "1/2-1/2"]
[ECO "C54"]
[WhiteElo "2041"]
[BlackElo "2196"]
[Annotator "RC"]
[PlyCount "97"]
[EventDate "2024.03.07"]
[EventType "rapid"]
[EventCountry "GHA"]
[SourceTitle "playchess.com"]
[Source "ChessBase"]
[SourceQuality "1"]
[TimeControl "900+10"]

1. e4 {[%emt 0:00:52]} e5 {[%emt 0:00:00]} 2. Nf3 {[%emt 0:00:02]} Nc6 {[%emt 0:00:00]} 3. Bc4 {[%emt 0:00:01]} Nf6 {[%emt 0:00:02]} 4. d3 {[%emt 0:00:01]} Bc5 {[%emt 0:00:03]} 5. c3 {[%emt 0:00:02]} d6 {[%emt 0:00:02]} 6. O-O {[%emt 0:00:05]} a6 {[%emt 0:00:07]} 7. h3 {[%emt 0:00:04]} Ba7 {[%emt 0:00:01]} 8. Re1 {[%emt 0:00:04]} h6 {[%emt 0:00:02]} 9. Nbd2 {[%emt 0:00:03]} O-O {[%emt 0:00:28]} 10. Nf1 {[%emt 0:00:02]} Be6 {[%emt 0:00:41]} 11. Bxe6 {[%emt 0:00:08]} fxe6 {[%emt 0:00:02]} 12. Qb3 {[%emt 0:00:01]} Qd7 {[%emt 0:00:28]} 13. Be3 {[%emt 0:00:08]} Bxe3 {[%emt 0:01:15]} 14. Rxe3 {[%emt 0:00:32]} Rab8 {[%emt 0:00:45]} 15. Ng3 {[%emt 0:00:09]} Qf7 {[%emt 0:01:48]} 16. d4 {[%emt 0:00:41]} Nd7 {[%emt 0:01:02]} 17. Rf1 {[%emt 0:00:56]} Kh8 {[%emt 0:01:18]} 18. Qd1 {[%emt 0:00:19]} Qg6 {[%emt 0:00:55]} 19. Nh4 {[%emt 0:00:50]} Qg5 {[%emt 0:00:21]} 20. Nf3 {[%emt 0:00:22]} Qg6 {[%emt 0:00:31]} 21. Nh4 {[%emt 0:00:03]} Qf6 {[%emt 0:01:32]} 22. Qg4 {[%emt 0:03:11]} Kh7 {[%emt 0:04:00]} 23. d5 {[%emt 0:02:02]} Ne7 {[%emt 0:02:02]} 24. Rf3 {[%emt 0:03:39]} Qg5 {[%emt 0:00:20]} 25. Qxe6 {[%emt 0:00:56]} Nc5 {[%emt 0:00:47]} 26. Qg4 {[%emt 0:00:01]} Rf4 {[%emt 0:00:09]} 27. Rxf4 {[%emt 0:01:14]} exf4 {[%emt 0:00:11]} 28. Ngf5 {[%emt 0:00:10]} Nxe4 {[%emt 0:00:29]} 29. Qxg5 {[%emt 0:00:42]} hxg5 {[%emt 0:00:02]} 30. Nxe7 {[%emt 0:00:02]} gxh4 {[%emt 0:00:02]} 31. Re1 {[%emt 0:00:11]} Nf6 {[%emt 0:00:01]} 32. c4 {[%emt 0:00:28]} b5 {[%emt 0:00:18]} 33. Nc6 {[%emt 0:02:39]} Rb6 {[%emt 0:00:08]} 34. b3 {[%emt 0:00:00]} bxc4 {[%emt 0:00:02]} 35. bxc4 {[%emt 0:00:00]} Rb2 {[%emt 0:00:03]} 36. Re7 {[%emt 0:00:00]} Rxa2 {[%emt 0:00:03]} 37. Rxc7 {[%emt 0:00:00]} Rc2 {[%emt 0:00:05]} 38. Nb4 {[%emt 0:00:00]} Rc1+ {[%emt 0:00:02]} 39. Kh2 {[%emt 0:00:00]} Ne4 {[%emt 0:00:13]} 40. Nd3 {[%emt 0:00:00]} Rc2 {[%emt 0:00:05]} 41. Nxf4 {[%emt 0:00:00]} Rxf2 {[%emt 0:00:09]} 42. Ne6 {[%emt 0:00:00]} Nd2 {[%emt 0:00:30]} 43. Kg1 {[%emt 0:00:00]} Rf1+ {[%emt 0:00:03]} 44. Kh2 {[%emt 0:00:00]} Rf2 {[%emt 0:00:16]} 45. Kg1 {[%emt 0:00:00]} Rf1+ {[%emt 0:00:02]} 46. Kh2 {[%emt 0:00:00]} Rf2 {[%emt 0:00:26]} 47. Kg1 {[%emt 0:00:00]} Rf1+ {[%emt 0:00:09]} 48. Kh2 {[%emt 0:00:00]} Rf2 {[%emt 0:01:10]} 49. Kg1 {[%emt 0:02:40]} 1/2-1/2